Cogmind - Beta 15 @@@ ROGUE MODE // 2025.05.10 @ 15:27:21 Player: H3-RMN Result: Destroyed by G-73 Enforcer with Phase Gun Performance ------------- Evolutions (6) 3000 Regions Visited (14) 2800 Robots Destroyed (94) 470 Value Destroyed (2331) 2331 Prototype IDs (54) 1080 Alien Tech Used (3) 600 Bonus (1444) 1444 TOTAL SCORE: 11725 Bonus ------- Follower Combat Kills 460 Registered with UFD 300 Met Optimus in HQ 500 Met Zhirov 300 Friendly Fire -116 Cogmind --------- Core Integrity 0/1150 Matter 270/300 Energy 100/100 System Corruption 6% Temperature Cool (9) Movement Core (100) Ox1 Location -4/Factory Parts ------- > --- POWER (2) -------- (None) > --- PROPULSION (6) --- (None) > --- UTILITY (10) ----- Advanced Weight Redist. System Advanced Signal Interpreter Advanced Terrain Scan Processor System Shield System Shield Tech Extrapolator > --- WEAPON (2) ------- Vibroblade > --- INVENTORY (5) ---- Advanced Gravity Neutralizer Long-range Terrain Scanner Transdimensional Reconstructor CPS Tube (2) Peak State ------------ > --- POWER ------------ Heavy Antimatter Reactor > --- PROPULSION ------- Experimental Biometal Leg Field Propulsion Drive Field Propulsion Drive Cooled Nuclear Pulse Thruster Cooled Nuclear Pulse Thruster Q-thruster > --- UTILITY ---------- Large Storage Unit Advanced Weight Redist. System Advanced Sensor Array Advanced Signal Interpreter Centrium Light Armor Plating Hacking Suite Hacking Suite Hacking Suite System Shield Tech Extrapolator > --- WEAPON ----------- Ionic Axe Ionic Axe > --- INVENTORY -------- Cooled Nuclear Pulse Thruster Medium Storage Unit Improved Matter Compressor Deep Structural Scanner Long-range Sensor Array Long-range IFF Parser Advanced Transmission Jammer Hacking Suite Authchip [Device] Transdimensional Reconstructor Personal Teleporter v0.10 Cooled Plasma Cannon Heavy Missile Launcher CPS Tube Multitool [Rating: 115] Favorites ----------- Power Light Nuclear Core Engine Light Angular Momentum Engine Power Core Light Nuclear Core Reactor Heavy Antimatter Reactor Propulsion VTOL Module Treads Light Treads Leg Experimental Biometal Leg Wheel Compact Wheel Hover Unit Antigrav System Flight Unit VTOL Module Utility Hacking Suite Device Advanced Weight Redist. System Storage Huge Storage Unit Processor Tech Extrapolator Hackware Hacking Suite Protection Insulated Plating Weapon Ionic Axe Energy Gun Medium Laser Energy Cannon Subdweller Beam Cannon Ballistic Gun Light Assault Rifle Ballistic Cannon Advanced Assault Cannon Launcher Grenade Launcher Special Weapon Multitool Slashing Weapon Ionic Axe Piercing Weapon Heavy Pick Special Melee Weapon Datajack Build | -11 -10 -10 -10 -7 -5 -5 -5 -5 -5 -5 -4 -4 -4 -4 ------- Run | Yrd Mat Min Sub Scr Fac Was Fac Upp Upp Zhi Pro Fac Was Fac Slots Evolved 12 | . . . . . 10 . . . . . . 2 . . Power 1 | . . . . . 1 . . . . . . . . . Propulsion 3 | . . . . . 3 . . . . . . . . . Utility 8 | . . . . . 6 . . . . . . 2 . . Weapon . | . . . . . . . . . . . . . . . Parts Attached 160 | 7 4 6 8 17 41 3 14 3 . 7 . 9 3 38 Power 12 | 1 1 . 1 1 2 . . . . 1 . . . 5 Engine 5 | 1 1 . 1 . 1 . . . . . . . . 1 Core 5 | . . . . 1 1 . . . . . . . . 3 Reactor 2 | . . . . . . . . . . 1 . . . 1 Propulsion 40 | 2 1 2 2 4 11 1 4 1 . 3 . . 1 8 Treads 3 | . 1 . 1 1 . . . . . . . . . . Leg 1 | . . . . . . . . . . . . . 1 . Wheel 6 | 2 . 2 1 1 . . . . . . . . . . Hover 8 | . . . . . 2 . . . . . . . . 6 Flight 22 | . . . . 2 9 1 4 1 . 3 . . . 2 Utility 76 | 2 1 1 1 8 20 2 9 1 . 2 . 9 1 19 Device 32 | 1 . . 1 5 8 1 3 1 . 1 . 2 1 8 Storage 11 | 1 1 . . 2 1 . 2 . . . . 1 . 3 Processor 10 | . . . . . 3 . 1 . . . . 2 . 4 Hackware 17 | . . . . . 8 . 3 . . . . 2 . 4 Protection 6 | . . 1 . 1 . 1 . . . 1 . 2 . . Artifact . | . . . . . . . . . . . . . . . Weapon 32 | 2 1 3 4 4 8 . 1 1 . 1 . . 1 6 Energy Gun 4 | 1 . . 1 . . . . . . . . . 1 1 Energy Cannon 5 | . . . 1 1 1 . . . . . . . . 2 Ballistic Gun 5 | 1 1 2 1 . . . . . . . . . . . Ballistic Cannon 1 | . . . . . 1 . . . . . . . . . Launcher 3 | . . 1 . . 1 . 1 . . . . . . . Special Weapon 5 | . . . 1 1 1 . . 1 . . . . . 1 Impact Weapon . | . . . . . . . . . . . . . . . Slashing Weapon 4 | . . . . 1 1 . . . . 1 . . . 1 Piercing Weapon 2 | . . . . 1 1 . . . . . . . . . Special Melee Weapon 3 | . . . . . 2 . . . . . . . . 1 Unidentified Prototypes 17 | . . . . . 3 2 . 1 1 4 . 1 2 3 Corrupted Parts 1 | . . . . 1 . . . . . . . . . . System Corruption 5 | . . . . 5 . . . . . . . . . . Parts Lost 67 | . 3 2 2 2 21 . 2 . . . . 2 . 33 Power 6 | . 1 . . . 1 . . . . . . 1 . 3 Propulsion 26 | . 1 . 1 1 8 . 1 . . . . . . 14 Utility 25 | . . 1 1 1 8 . 1 . . . . 1 . 12 Weapon 10 | . 1 1 . . 4 . . . . . . . . 4 Highest Loss Streak 18 | . 3 1 1 2 9 . 2 . . . . 1 . 18 To Critical Strikes . | . . . . . . . . . . . . . . . Average Backups 14 | 3 7 11 20 20 8 10 11 14 14 15 15 14 15 9 Power . | . 1 1 2 1 . . . . . . . . . . Propulsion 2 | 1 2 2 5 4 . . . 1 1 1 1 1 1 . Utility 4 | . . 4 6 6 2 3 4 6 6 7 7 6 8 3 Weapon 3 | . 2 2 4 6 1 3 2 3 3 2 2 2 2 2 Tool/Special . | . . . . . . . . . . . . . . . Unused Backups 30 | . . 1 2 14 3 . 3 . . 1 . 1 . 5 Power 7 | . . . 2 2 1 . . . . . . . . 2 Propulsion 6 | . . . . 4 . . 2 . . . . . . . Utility 7 | . . 1 . 2 . . . . . 1 . 1 . 2 Weapon 6 | . . . . 3 2 . 1 . . . . . . . Tool/Special 4 | . . . . 3 . . . . . . . . . 1 Average Slot Usage (%) 91 | . 95 100 98 90 77 95 99 100 100 98 100 97 94 77 Engine 7 | . 10 14 14 12 . 1 5 5 5 5 5 3 . . Core 2 | . . . . 1 4 4 5 5 5 2 . . . 3 Treads 6 | . 5 14 14 12 . . . . . . . . . . Wheel 7 | . 22 14 14 12 . . . . . . . . . . Hover 1 | . . . . . 5 5 1 . . . . . . 6 Flight 11 | . . . . 2 18 22 26 29 32 33 33 30 29 14 Device 9 | . 14 3 5 8 13 11 9 16 16 15 16 14 11 7 Storage 9 | . 14 14 14 14 5 5 5 5 5 5 5 5 5 3 Processor 4 | . . . . . 6 11 11 11 11 11 11 10 10 13 Hackware 7 | . . . . . 10 17 18 11 11 11 11 19 20 21 Protection 2 | . . 10 7 1 . . . . . . . . 3 . Energy Cannon 3 | . . . 5 8 . . . . . . . . . . Ballistic Gun 4 | . 19 27 17 . . . . . . . . . . . Launcher 2 | . . . 1 8 . . . . . . . . . . Slashing Weapon 2 | . . . . . 3 5 5 3 5 6 11 10 10 3 Piercing Weapon 2 | . . . . 5 2 . . . . . . . . . Peak Build Rating 115 | 7 8 12 19 28 62 65 76 73 79 100 101 109 115 113 Average Rating 42 | 5 6 9 13 18 49 62 70 71 74 85 100 105 107 82 On Entrance 55 | . 7 7 11 19 28 59 65 70 73 75 100 101 109 105 Naked Turns . | . . . . . . . . . . . . . . . Heaviest Build 102 | 15 90 91 102 102 25 23 34 34 34 50 50 50 50 51 Greatest Support 62 | 26 26 16 20 25 35 29 40 44 39 51 51 51 51 62 Greatest Overweight (x) 9 | . 5 9 9 9 4 1 1 . . 1 1 1 1 2 Average Overweight (x) 1 | . 1 8 6 4 . . . . . . . . . . Largest Inventory Capacity 25 | 8 25 25 25 25 10 10 15 15 15 15 15 15 15 15 Average Capacity 18 | 7 16 25 25 23 10 10 12 15 15 15 15 15 15 10 Most Carried 25 | 5 9 17 25 25 10 10 15 15 15 15 15 15 15 15 Average Carried 14 | 3 7 11 21 20 8 9 11 14 14 14 15 14 14 9 Final Capacity 25 | 8 25 25 25 10 10 10 15 15 15 15 15 15 15 5 Final Carried 25 | 5 8 16 25 10 10 10 15 15 15 15 15 15 15 4 Class Distribution -------------------- 51% | Mutant 14% | Scavenger-Sprinter 9% | Scavenger-Scout 6% | Hacker-Mutant 5% | Hacker-Sprinter 4% | Scavenger-Mutant 4% | Hacker-Scout 3% | Derelict-Mutant Dominant Class ---------------- Mutant | -10/Materials Mutant | -10/Mines Mutant | -10/Subcaves Mutant | -7/Scraptown Scavenger-Sprinter | -5/Factory Scavenger-Scout | -5/Waste Scavenger-Sprinter | -5/Factory Scavenger-Scout | -5/Upper Caves Scavenger-Scout | -5/Upper Caves Scavenger-Scout | -5/Zhirov Scavenger-Sprinter | -4/Proximity Caves Hacker-Scout | -4/Factory Hacker-Sprinter | -4/Waste Hacker-Mutant | -4/Factory Resources | -11 -10 -10 -10 -7 -5 -5 -5 -5 -5 -5 -4 -4 -4 -4 ----------- Run | Yrd Mat Min Sub Scr Fac Was Fac Upp Upp Zhi Pro Fac Was Fac Matter Collected 3965 | 291 105 258 142 169 871 100 188 231 153 179 29 472 177 600 Remotely . | . . . . . . . . . . . . . . . Salvage Created 3803 | 73 421 220 279 . 895 . 477 35 . 221 . 313 69 800 Parts 206 | 4 26 12 24 . 45 . 23 3 . 11 . 17 2 39 Haulers Intercepted 7 | . 1 . . . 4 . 1 . . . . . . 1 Recyclers Shooed 1 | 1 . . . . . . . . . . . . . . Parts Field Recycled . | . . . . . . . . . . . . . . . Retrieved Matter . | . . . . . . . . . . . . . . . Parts Self-Destructed 25 | . . . 15 . . . . . . 10 . . . . Prevented . | . . . . . . . . . . . . . . . Kills | -11 -10 -10 -10 -7 -5 -5 -5 -5 -5 -5 -4 -4 -4 -4 ------- Run | Yrd Mat Min Sub Scr Fac Was Fac Upp Upp Zhi Pro Fac Was Fac Combat Hostiles Destroyed 51 | . 11 4 8 . 10 . 8 . . . . 4 . 6 Melee 10 | . . . . . 7 . . . . . . . . 3 Guns 14 | . 11 1 2 . . . . . . . . . . . Cannons 6 | . . . 3 . . . . . . . . . . 3 AOE 21 | . . 3 3 . 3 . 8 . . . . 4 . . Classes Destroyed 14 | 2 3 2 2 . 3 . . 1 . . . . . 1 Worker 10 | . . 1 . . 1 . 5 . . . . 1 . 2 Builder 2 | . . 1 . . . . . . . . . . . 1 Tunneler 3 | 1 . . . . 1 . . . . . . 1 . . Hauler 7 | . 1 . . . 4 . 1 . . . . . . 1 Recycler 8 | 1 . 2 . . 1 . 1 . . . . 1 . 2 Operator 7 | . . . . . 3 . 2 . . . . 1 . 1 Watcher 6 | . . . . . 1 . 3 . . . . 1 . 1 Swarmer 30 | . 3 4 3 . 8 . 8 . . . . 4 . . Grunt 8 | . 8 . . . . . . . . . . . . . Sentry 1 | . . . . . . . . . . . . . . 1 Programmer 7 | . . . . . 2 . . . . . . . . 5 Artisan 1 | . . . 1 . . . . . . . . . . . Subdweller 5 | . . . 5 . . . . . . . . . . . Samaritan 1 | . . . . . . . . 1 . . . . . . Best Kill Streak 10 | 2 3 3 3 . 4 . 10 . . . . 5 . 3 Combat Bots Only 4 | . 3 3 3 . 4 . 4 . . . . 4 . 3 Max Kills in Single Turn 8 | 1 1 2 2 . 2 . 8 1 . . . 4 . 1 Gunslinging . | . . . . . . . . . . . . . . . Exploded 3 | . . 2 2 . 2 . 3 . . . . 3 . . Melee 1 | . . . . . 1 . . . . . . . . 1 Uniques/NPCs Destroyed . | . . . . . . . . . . . . . . . Combat | -11 -10 -10 -10 -7 -5 -5 -5 -5 -5 -5 -4 -4 -4 -4 -------- Run | Yrd Mat Min Sub Scr Fac Was Fac Upp Upp Zhi Pro Fac Was Fac Hostile Shots Fired 517 | . 54 27 28 . 110 . 27 . . . . 14 . 257 Missed 195 | . 14 8 10 . 51 . 12 . . . . 6 . 94 Hits 322 | . 40 19 18 . 59 . 15 . . . . 8 . 163 Projectile 322 | . 40 19 18 . 59 . 15 . . . . 8 . 163 AOE 1 | . . . . . . . . . . . . . . 1 Critical Strikes 11 | . . . 2 . 3 . . . . . . . . 6 Damage Taken 6009 | . 467 293 396 174 1272 . 247 . . . . 113 . 3047 Core 1828 | . 114 18 44 . 429 . 69 . . . . 52 . 1102 Absorbed by Shields 6 | . . . . . . . 6 . . . . . . . Regen/Repaired (Parts) 68 | . . . . 67 . 1 . . . . . . . . Core Remaining (%) 59 | 100 . . . 29 . . . . . . 50 . . . Volleys Fired 159 | 7 49 27 37 . 2 . 6 . 1 1 . 3 . 26 Largest 2 | 2 2 2 2 . 1 . 1 . 1 1 . 1 . 1 Hottest 110 | 70 70 40 110 . 33 . 39 . 35 . . 39 . 105 Shots Fired 258 | 14 98 52 55 . 2 . 6 . 1 1 . 3 . 26 Gun 209 | 14 98 50 39 . . . . . . . . . . 8 Cannon 27 | . . . 7 . . . . . 1 . . 1 . 18 Launcher 14 | . . 2 2 . 2 . 6 . . . . 2 . . Special 8 | . . . 7 . . . . . . 1 . . . . Kinetic 151 | 7 64 50 30 . . . . . . . . . . . Thermal 71 | 7 34 . 14 . . . . . 1 . . 1 . 14 Explosive 14 | . . 2 2 . 2 . 6 . . . . 2 . . Electromagnetic 21 | . . . 9 . . . . . . . . . . 12 Robot Hit Streak 10 | 6 7 6 9 . . . 2 . . 1 . . . 10 Robot Miss Streak 4 | 1 4 3 4 . . . 1 . . . . . . 2 Penetration Max . | . . . . . . . . . . . . . . . Secondary Targets . | . . . . . . . . . . . . . . . Shots Hit Robots 233 | 11 58 36 34 . 39 . 10 1 . 8 . 6 1 29 Core Hits 124 | 3 24 17 15 . 23 . 18 1 . 2 . 9 . 12 Critical Kills . | . . . . . . . . . . . . . . . Critical Parts Destroyed 1 | . 1 . . . . . . . . . . . . . Critical Strikes 9 | . 5 . . . 4 . . . . . . . . . Burn 4 | . 4 . . . . . . . . . . . . . Destroy 1 | . 1 . . . . . . . . . . . . . Impale 4 | . . . . . 4 . . . . . . . . . Melee Attacks 208 | . . . . . 81 1 34 5 3 7 5 28 1 43 Impact . | . . . . . . . . . . . . . . . Slashing 150 | . . . . . 26 1 34 5 3 4 5 28 1 43 Piercing 54 | . . . . . 54 . . . . . . . . . Sneak Attacks 27 | . . . . . 11 . 4 1 . 3 . 2 . 6 Combat Hostiles 2 | . . . . . 1 . 1 . . . . . . . Follow-up Attacks 2 | . . . . . 1 . . . . . . 1 . . Damage Inflicted 8952 | 143 656 483 563 . 2153 . 2014 77 . 388 . 726 108 1641 Guns 1528 | 143 656 319 289 . . . . . . . . . . 121 Cannons 512 | . . . 131 . . . . . . . . . . 381 Explosions 2198 | . . 164 143 . 280 . 1297 . . . . 314 . . Melee 4676 | . . . . . 1873 . 717 77 . 388 . 412 108 1101 Ramming 38 | . . . . . . . . . . . . . . 38 Kinetic 976 | 67 405 319 185 . . . . . . . . . . . Thermal 778 | 76 251 . 131 . . . . . . . . . . 320 Explosive 2198 | . . 164 143 . 280 . 1297 . . . . 314 . . Electromagnetic 286 | . . . 104 . . . . . . . . . . 182 Impact . | . . . . . . . . . . . . . . . Slashing 3411 | . . . . . 608 . 717 77 . 388 . 412 108 1101 Piercing 1265 | . . . . . 1265 . . . . . . . . . Highest Corruption 17 | . . . . 5 1 17 17 17 17 17 17 . . 6 Average Corruption 8 | . . . . 5 1 9 16 17 17 17 17 . . 3 Corruption Purged 2 | . . . . . 1 . 1 . . . . . . . Corruption Blocked . | . . . . . . . . . . . . . . . Effects 110 | . . . . 9 6 4 37 8 8 5 17 . . 16 Message Errors 35 | . . . . 1 3 1 12 3 2 . 7 . . 6 Matter Fused 25 | . . . . 1 1 2 8 2 3 1 4 . . 3 Heat Flow Errors 14 | . . . . 2 . 1 5 1 1 1 2 . . 1 Energy Discharges 15 | . . . . 1 2 . 4 1 2 1 1 . . 3 Data Loss (minor) 14 | . . . . 3 . . 6 1 . 1 2 . . 1 Data Loss (major) 1 | . . . . . . . 1 . . . . . . . Misfires 1 | . . . . . . . . . . . . . . 1 Alerts 3 | . . . . 1 . . . . . 1 1 . . . Misdirections 1 | . . . . . . . 1 . . . . . . . Weapon Failures 1 | . . . . . . . . . . . . . . 1 Overload Shots . | . . . . . . . . . . . . . . . Overflow Damage 975 | . . 2 . . 339 . 252 . . 57 . 113 83 129 Projectiles . | . . . . . . . . . . . . . . . Explosions 169 | . . 2 . . . . 167 . . . . . . . Melee 806 | . . . . . 339 . 85 . . 57 . 113 83 129 Knockbacks 1 | . . . . . . . . . . . . . . 1 Impact 1 | . . . . . . . . . . . . . . 1 Kinetic . | . . . . . . . . . . . . . . . Secondary . | . . . . . . . . . . . . . . . Self-Inflicted Damage 69 | . . . 20 . 32 . . . . . . . . 17 Shots 2 | . . . 1 . 1 . . . . . . . . . Rammed 11 | . . . . . . . . . . . . . . 11 Targets Rammed 11 | . . . . . . . . . . . . . . 11 Kicked . | . . . . . . . . . . . . . . . Crushed . | . . . . . . . . . . . . . . . Highest Temperature 274 | 27 108 82 264 208 8 266 274 152 234 170 236 . . 121 Average Temperature 55 | 13 29 36 36 90 8 228 65 28 106 84 122 . . 58 Received Heat Transfer 1051 | . 210 105 359 . 36 . 27 . . . . . . 314 Effects 4 | . . . . . . 1 . . . . 3 . . . Energy Bleed 1 | . . . . . . 1 . . . . . . . . Interference 3 | . . . . . . . . . . . 3 . . . Siege Activations . | . . . . . . . . . . . . . . . Martial Activations . | . . . . . . . . . . . . . . . Shielding Activations . | . . . . . . . . . . . . . . . Robots Disrupted . | . . . . . . . . . . . . . . . Combat Hostiles . | . . . . . . . . . . . . . . . Robots Corrupted . | . . . . . . . . . . . . . . . Combat Hostiles . | . . . . . . . . . . . . . . . Parts Fried 2 | . . . . . . . . . . . . . . 2 Impact Corruptions . | . . . . . . . . . . . . . . . Robots Melted . | . . . . . . . . . . . . . . . Combat Hostiles . | . . . . . . . . . . . . . . . Parts Melted 5 | . 4 . 1 . . . . . . . . . . . Heat Transferred 1739 | 222 1036 . 185 . . . . . . . . . . 296 Parts Sabotaged . | . . . . . . . . . . . . . . . Parts Stolen . | . . . . . . . . . . . . . . . Parts Stripped . | . . . . . . . . . . . . . . . Power Chain Reactions . | . . . . . . . . . . . . . . . Alert | -11 -10 -10 -10 -7 -5 -5 -5 -5 -5 -5 -4 -4 -4 -4 ------- Run | Yrd Mat Min Sub Scr Fac Was Fac Upp Upp Zhi Pro Fac Was Fac Maximum Alert Level 2 | . . . . . 1 . 2 . . . . . . 1 Low Security (%) 97 | 100 100 100 . . 97 100 87 . . . . 100 100 99 Level 1 1 | . . . . . 2 . 5 . . . . . . . Level 2 . | . . . . . . . 6 . . . . . . . Level 3 . | . . . . . . . . . . . . . . . Level 4 . | . . . . . . . . . . . . . . . Level 5 . | . . . . . . . . . . . . . . . High Security . | . . . . . . . . . . . . . . . Max Security . | . . . . . . . . . . . . . . . Peak Influence 488 | 5 155 101 . . 249 40 488 . . . . 143 41 212 Initial 41 | . . 41 . . . . 18 . . . . . 41 . Average 54 | . 100 21 . . 42 12 47 . . . . 103 10 91 Influence Increases 3521 | 10 335 238 70 . 871 76 658 . . 10 . 402 . 851 Destroy 0b10 Robot/C 1080 | . 220 180 60 . 240 . 160 . . . . 80 . 140 Destroy 0b10 Robot/NC 225 | 10 5 20 . . 55 . 60 . . 10 . 25 . 40 Destroy Leader 226 | . 42 30 10 . 50 . 28 . . . . 12 . 54 Allied During Kill 17 | . . 8 . . 6 . . . . . . . . 3 Successful Hack 227 | . 7 . . . 63 . 41 . . . . 46 . 70 Select Force Hacks 30 | . 30 . . . . . . . . . . . . . Disable Machine 135 | . . . . . 30 . 45 . . . . 15 . 45 Destroy Structure 441 | . 1 . . . 82 76 144 . . . . 74 . 64 Partial Spotted 270 | . . . . . 150 . 15 . . . . 45 . 60 Lose Combat Pursuer 870 | . 30 . . . 195 . 165 . . . . 105 . 375 Influence Decreases 3360 | 10 228 345 30 40 870 51 202 279 160 53 . 283 119 690 Entered New Map 455 | . . 66 . 40 . 1 8 179 40 43 . . 78 . Time Decay 2068 | 10 198 269 30 . 466 30 174 100 120 10 . 263 41 357 Lost Part 557 | . 30 10 . . 174 . 20 . . . . 10 . 313 Lost Ally 130 | . . . . . 80 20 . . . . . 10 . 20 Purge Threat 150 | . . . . . 150 . . . . . . . . . Squads Dispatched 41 | . 2 1 . . 13 . 10 . . . . 5 . 10 Investigation 25 | . 1 . . . 6 . 7 . . . . 3 . 8 Extermination 9 | . . . . . 4 . 2 . . . . 1 . 2 Reinforcement 6 | . 1 . . . 3 . 1 . . . . 1 . . Assault 1 | . . 1 . . . . . . . . . . . . Garrison . | . . . . . . . . . . . . . . . Intercept . | . . . . . . . . . . . . . . . Searches Triggered . | . . . . . . . . . . . . . . . Construction Impeded . | . . . . . . . . . . . . . . . Haulers Reinforced . | . . . . . . . . . . . . . . . Active Scanning Responses . | . . . . . . . . . . . . . . . Cargo Convoy Interrupts . | . . . . . . . . . . . . . . . Stealth | -11 -10 -10 -10 -7 -5 -5 -5 -5 -5 -5 -4 -4 -4 -4 --------- Run | Yrd Mat Min Sub Scr Fac Was Fac Upp Upp Zhi Pro Fac Was Fac Distress Signals 4 | . . . . . 1 . . . . . . 1 . 2 Communications Jammed 5 | . . . . . . . 2 . . . . 3 . . Distress Signals 5 | . . . . . . . 2 . . . . 3 . . Times Spotted 169 | . 20 12 10 . 39 9 27 . . . . 11 . 41 Peak Tracking Total 13 | . 4 4 3 . 10 5 6 . . . . 6 . 13 Tactical Retreats 28 | . 2 . . . 8 1 4 . . . . 4 . 9 Traps | -11 -10 -10 -10 -7 -5 -5 -5 -5 -5 -5 -4 -4 -4 -4 ------- Run | Yrd Mat Min Sub Scr Fac Was Fac Upp Upp Zhi Pro Fac Was Fac Traps Triggered 8 | . . 1 . 1 2 . 1 . . . . 1 . 2 Indirectly . | . . . . . . . . . . . . . . . Trap Hack Attempts 3 | . . . . . 3 . . . . . . . . . Triggered . | . . . . . . . . . . . . . . . Disarmed . | . . . . . . . . . . . . . . . Reprogrammed . | . . . . . . . . . . . . . . . Reused . | . . . . . . . . . . . . . . . Traps Extracted . | . . . . . . . . . . . . . . . Installed 1 | . . . . 1 . . . . . . . . . . Triggered . | . . . . . . . . . . . . . . . Most Traps Carried 1 | . . . . 1 . . . . . . . . . . Machines | -11 -10 -10 -10 -7 -5 -5 -5 -5 -5 -5 -4 -4 -4 -4 ---------- Run | Yrd Mat Min Sub Scr Fac Was Fac Upp Upp Zhi Pro Fac Was Fac Machines Disabled 10 | . . . . . 2 . 3 1 . . . 1 . 3 Max in Single Turn 1 | . . . . . 1 . 1 1 . . . 1 . 1 Garrison Access 5 | . . . . . 2 . 1 . . . . 2 . . Machines Repaired . | . . . . . . . . . . . . . . . Machines Dismantled . | . . . . . . . . . . . . . . . Machines Sabotaged . | . . . . . . . . . . . . . . . Overloaded Fab Kills . | . . . . . . . . . . . . . . . Hacking | -11 -10 -10 -10 -7 -5 -5 -5 -5 -5 -5 -4 -4 -4 -4 --------- Run | Yrd Mat Min Sub Scr Fac Was Fac Upp Upp Zhi Pro Fac Was Fac Machines Accessed 78 | . 3 1 . 2 19 . 14 1 . 4 . 16 . 18 Terminals 38 | . 2 . . . 9 . 6 . . . . 10 . 11 Fabricators 6 | . . . . . 3 . 2 . . . . . . 1 Repair Stations 2 | . . . . . 2 . . . . . . . . . Recycling Units 15 | . 1 . . . 2 . 4 . . . . 3 . 5 Scanalyzers 4 | . . . . . 1 . 1 . . . . 1 . 1 Garrison Access 5 | . . . . . 2 . 1 . . . . 2 . . Total Hacks 248 | . 10 1 . 3 58 . 29 1 . 17 . 59 . 70 Successful 156 | . 5 1 . 3 22 . 21 1 . 17 . 37 . 49 Failed 92 | . 5 . . . 36 . 8 . . . . 22 . 21 Catastrophic 13 | . 1 . . . 4 . 2 . . . . 2 . 4 Database Lockouts . | . . . . . . . . . . . . . . . Manual 112 | . 8 . . . 17 . 12 . . . . 29 . 46 Terminals 134 | . 7 . . . 32 . 10 . . . . 40 . 45 Fabricators 23 | . . . . . 12 . 5 . . . . . . 6 Repair Stations 4 | . . . . . 4 . . . . . . . . . Recycling Units 38 | . 3 . . . 5 . 7 . . . . 10 . 13 Scanalyzers 20 | . . . . . 3 . 5 . . . . 6 . 6 Garrison Access 7 | . . . . . 2 . 2 . . . . 3 . . Terminal Hacks 63 | . 1 1 . 3 9 . 4 1 . 17 . 14 . 13 Record 8 | . . . . 2 . . . 1 . 5 . . . . Part Schematic 11 | . 1 . . . . . . . . 4 . 3 . 3 Robot Analysis 4 | . . . . . . . . . . 4 . . . . Prototype ID Bank 6 | . . . . . . . . . . 4 . 2 . . Open Door 1 | . . 1 . . . . . . . . . . . . Branch Access Points 4 | . . . . . 1 . 1 . . . . 1 . 1 Machine Index 2 | . . . . . . . 1 . . . . . . 1 Terminal Index 3 | . . . . . 1 . . . . . . 1 . 1 Scanalyzer Index 1 | . . . . . . . . . . . . 1 . . Unreport Threat 1 | . . . . . 1 . . . . . . . . . Locate Traps 6 | . . . . . 2 . 1 . . . . 2 . 1 Recall Investigation 4 | . . . . . . . . . . . . 2 . 2 Recall Extermination 2 | . . . . . 2 . . . . . . . . . Hauler Manifests 1 | . . . . . 1 . . . . . . . . . Registered Components 4 | . . . . . 1 . 1 . . . . 1 . 1 Zone Layout 4 | . . . . . . . . . . . . 1 . 3 Proto ID Catalog 1 | . . . . 1 . . . . . . . . . . Fabricator Hacks 8 | . . . . . 2 . 3 . . . . . . 3 Network Status 1 | . . . . . 1 . . . . . . . . . Load Schematic 4 | . . . . . . . 2 . . . . . . 2 Build 3 | . . . . . 1 . 1 . . . . . . 1 Repair Station Hacks . | . . . . . . . . . . . . . . . Recycling Unit Hacks 11 | . 1 . . . 1 . 2 . . . . 3 . 4 Report Inventory 10 | . 1 . . . 1 . 2 . . . . 2 . 4 Retrieve Components 1 | . . . . . . . . . . . . 1 . . Scanalyzer 15 | . . . . . . . 5 . . . . 4 . 6 Insert Component 6 | . . . . . . . 2 . . . . 2 . 2 Analyze 9 | . . . . . . . 3 . . . . 2 . 4 Garrison Access Hacks 5 | . . . . . 2 . 1 . . . . 2 . . Seal Access 5 | . . . . . 2 . 1 . . . . 2 . . Unauthorized Hacks 54 | . 3 . . . 8 . 6 . . . . 14 . 23 Terminals 30 | . 2 . . . 3 . 1 . . . . 11 . 13 Track 5 | . . . . . . . . . . . . 1 . 4 Assimilate 4 | . . . . . 1 . . . . . . 2 . 1 Botnet 7 | . 1 . . . 2 . . . . . . 2 . 2 Operators 2 | . . . . . . . . . . . . 1 . 1 Skim 11 | . 1 . . . . . . . . . . 5 . 5 Search 1 | . . . . . . . 1 . . . . . . . Fabricators 6 | . . . . . 3 . 1 . . . . . . 2 Report 1 | . . . . . 1 . . . . . . . . . Prioritize 1 | . . . . . . . . . . . . . . 1 Liberate 1 | . . . . . 1 . . . . . . . . . Haulers 2 | . . . . . 1 . . . . . . . . 1 Recompile 1 | . . . . . . . 1 . . . . . . . Repair Stations . | . . . . . . . . . . . . . . . Recycling Units 18 | . 1 . . . 2 . 4 . . . . 3 . 8 Monitor 1 | . . . . . . . . . . . . . . 1 Reject 1 | . . . . . . . . . . . . . . 1 Recyclers 1 | . . . . . . . . . . . . . . 1 Mask 1 | . . . . . . . . . . . . . . 1 Tunnel 1 | . 1 . . . . . . . . . . . . . Fedlink 12 | . . . . . 2 . 4 . . . . 3 . 3 Scraphulk 1 | . . . . . . . . . . . . . . 1 Scanalyzers . | . . . . . . . . . . . . . . . Garrison Access . | . . . . . . . . . . . . . . . Data Cores Recovered 2 | . . . . . 1 . 1 . . . . . . . Used 1 | . . . . . . . 1 . . . . . . . Hacking Detections 55 | . 3 . . . 14 . 10 . . . . 14 . 14 Full Trace Events 9 | . . . . . 4 . 1 . . . . . . 4 Feedback Events 3 | . . . . . 2 . . . . . . . . 1 Corruption 2 | . . . . . 1 . . . . . . . . 1 Hackware Fried 1 | . . . . . 1 . . . . . . . . . Feedback Blocked . | . . . . . . . . . . . . . . . Robot Schematics Acquired . | . . . . . . . . . . . . . . . Robots Built 3 | . . . . . 3 . . . . . . . . . Authchips . | . . . . . . . . . . . . . . . Time 76 | . . . . . 76 . . . . . . . . . Total Robot Build Rating 15 | . . . . . 15 . . . . . . . . . Part Schematics Acquired 41 | . 1 . . . . . 5 1 3 6 4 9 2 10 Parts Built 2 | . . . . . . . 1 . . . . . . 1 Authchips 1 | . . . . . . . . . . . . . . 1 Time 88 | . . . . . . . 42 . . . . . . 46 Total Part Build Rating 11 | . . . . . . . 4 . . . . . . 7 Parts Repaired . | . . . . . . . . . . . . . . . Time . | . . . . . . . . . . . . . . . Parts Recycled . | . . . . . . . . . . . . . . . Recycled Matter . | . . . . . . . . . . . . . . . Retrieved Matter . | . . . . . . . . . . . . . . . Retrieved Components 3 | . . . . . . . . . . . . 3 . . Parts Scanalyzed 5 | . . . . . . . 2 . . . . 2 . 1 Part Schematics Acquired 5 | . . . . . . . 2 . . . . 1 . 2 Parts Damaged 1 | . . . . . . . . . . . . 1 . . Bothacking | -11 -10 -10 -10 -7 -5 -5 -5 -5 -5 -5 -4 -4 -4 -4 ------------ Run | Yrd Mat Min Sub Scr Fac Was Fac Upp Upp Zhi Pro Fac Was Fac Used RIF Installer . | . . . . . . . . . . . . . . . Robots Hacked 4 | . . . . . 1 . . . . 3 . . . . Non-combat 1 | . . . . . 1 . . . . . . . . . Combat 3 | . . . . . . . . . . 3 . . . . Robot Hacks Applied 4 | . . . . . 1 . . . . 3 . . . . parse_system 3 | . . . . . . . . . . 3 . . . . find_chute 1 | . . . . . 1 . . . . . . . . . Relay Couplers Released 1 | . . . . . 1 . . . . . . . . . Machine Destruction 1 | . . . . . 1 . . . . . . . . . Fabnet Peak Effective % . | . . . . . . . . . . . . . . . Robots Rewired . | . . . . . . . . . . . . . . . Allies Hacked 1 | . . . . . 1 . . . . . . . . . Hacks Repelled . | . . . . . . . . . . . . . . . Allies | -11 -10 -10 -10 -7 -5 -5 -5 -5 -5 -5 -4 -4 -4 -4 -------- Run | Yrd Mat Min Sub Scr Fac Was Fac Upp Upp Zhi Pro Fac Was Fac Total Allies 30 | . . 1 . . 7 19 . . . . . 1 . 2 Largest Group 19 | . . 1 1 . 4 19 . . . . . 1 . 1 Highest-Rated Group 702 | . . 31 31 . 113 702 . . . . . 26 . 123 Highest-Rated Ally 123 | . . 31 31 . 30 50 . . . . . 26 . 123 Total Orders . | . . . . . . . . . . . . . . . Ally Attacks 141 | . . 12 8 . 32 79 . . . . . . . 10 Total Damage 8305 | . . 185 146 . 593 6950 . . . . . . . 431 Kills 26 | . . 5 2 . 2 16 . . . . . . . 1 Allies Corrupted 1 | . . . . . 1 . . . . . . . . . Allies Melted . | . . . . . . . . . . . . . . . Intel | -11 -10 -10 -10 -7 -5 -5 -5 -5 -5 -5 -4 -4 -4 -4 ------- Run | Yrd Mat Min Sub Scr Fac Was Fac Upp Upp Zhi Pro Fac Was Fac Active Infowar (turns) 5878 | 55 410 301 318 206 1498 133 759 201 247 114 407 653 144 432 Optics 856 | . . . 318 206 332 . . . . . . . . . Sensors 3669 | . . . . . 1404 129 727 201 247 114 1 520 80 246 IFF 510 | . . . . . . . . . . 31 394 74 . 11 Terrain 10 | . . . . . . . . . . . . . . 10 Structural 1587 | . . . . . . . . 195 247 59 406 517 64 99 Seismic 1582 | 55 410 301 . . 806 . . . . . . . . 10 T.N.C. 382 | . . . . . 233 133 3 . . . . . . 13 Jamming 231 | . . . . . 63 . 61 . . . . 55 . 52 Robot Analysis Total 4 | . . . . . . . . . . 4 . . . . Derelict Logs Recovered 10 | . . 2 1 5 . . . 1 . . 1 . . . Drone Launches . | . . . . . . . . . . . . . . . Drone Recoveries . | . . . . . . . . . . . . . . . Exploration | -11 -10 -10 -10 -7 -5 -5 -5 -5 -5 -5 -4 -4 -4 -4 ------------- Run | Yrd Mat Min Sub Scr Fac Was Fac Upp Upp Zhi Pro Fac Was Fac Turns Passed 11939 | 99 410 1230 880 3931 1600 133 850 201 247 114 407 653 194 990 Spaces Moved 13142 | 71 178 538 399 2445 2507 217 1451 553 464 220 508 1362 551 1678 Core 83 | 2 . . . . . . . . . . . . . 81 Treads . | . . . . . . . . . . . . . . . Legs . | . . . . . . . . . . . . . . . Wheels 3064 | 69 178 538 399 1880 . . . . . . . . . . Hover 249 | . . . . . . . . . . . . . . 249 Flight 9744 | . . . . 565 2506 217 1451 553 464 220 508 1362 551 1347 Fastest Speed 24 | 50 90 175 150 52 28 27 25 28 27 24 27 27 27 24 Average Speed 67 | 88 122 201 186 157 31 28 28 30 31 29 27 27 27 35 Slowest Speed 355 | 90 175 215 215 215 355 109 107 32 32 107 105 109 104 180 Overloaded Moves 4 | . . . . . . . . . . . . . . 4 Propulsion Burnouts . | . . . . . . . . . . . . . . . Robots Hopped 48 | . . . . . 7 2 28 . . . . 4 1 6 Potential Cave-ins . | . . . . . . . . . . . . . . . Cave-ins Triggered . | . . . . . . . . . . . . . . . Teleports 2 | . . . . . 1 . . . . . . . . 1 Exploration Rate (%) 57 | 3 36 95 28 88 45 85 31 81 72 60 79 27 96 43 Regions Visited 14 Branch Regions 7 Pre-discovered Areas 10 | . 1 1 . 2 1 . . 1 . 3 . 1 . . Known Exits Taken 5 | . . . . . . . 1 1 1 1 1 . . . Unknown Exits Taken 5 | 1 1 1 1 1 . . . . . . . . . . Scrap Searched 15 | . . 1 2 5 . . . 4 2 . 1 . . . Spaces Dug 152 | . . . . . 40 1 49 3 4 . 4 31 . 20 Terrain Destroyed 246 | . . . 8 . 40 1 117 3 4 . 4 48 . 21 Melee 79 | . . . . . 22 1 18 3 3 . 4 13 . 15 Projectile 8 | . . . . . . . . . 1 . . 1 . 6 AOE 159 | . . . 8 . 18 . 99 . . . . 34 . . Terrain Rammed . | . . . . . . . . . . . . . . . Walls Destroyed . | . . . . . . . . . . . . . . . Machines Disabled . | . . . . . . . . . . . . . . . Actions | -11 -10 -10 -10 -7 -5 -5 -5 -5 -5 -5 -4 -4 -4 -4 --------- Run | Yrd Mat Min Sub Scr Fac Was Fac Upp Upp Zhi Pro Fac Was Fac Total 15556 | 90 275 636 472 2524 3164 283 1793 571 554 263 768 1593 592 1978 Wait 1525 | . 38 50 9 12 478 53 263 . 80 1 256 157 26 102 Move 13038 | 70 177 537 398 2444 2493 213 1397 552 463 219 507 1354 548 1666 Hop 44 | . . . . . 7 1 25 . . . . 4 1 6 Pick Up 121 | 6 6 10 13 20 18 1 13 1 1 5 . 8 2 17 Fast Attach 107 | 6 . 1 2 6 30 6 7 3 2 10 . 4 5 25 Attach 64 | 1 3 1 2 2 21 . 2 1 1 2 . 3 1 24 Detach 23 | . . . . 1 8 . . . . 1 . 1 . 12 Swap 110 | . 1 6 5 13 8 1 19 5 2 2 1 22 1 24 Drop 134 | . 1 4 6 25 18 7 14 3 1 15 . 10 7 23 Fire 159 | 7 49 27 37 . 2 . 6 . 1 1 . 3 . 26 Melee 197 | . . . . . 78 1 34 5 3 7 4 24 1 40 Ram 11 | . . . . . . . . . . . . . . 11 Kick . | . . . . . . . . . . . . . . . Crush . | . . . . . . . . . . . . . . . Escape Stasis 12 | . . . . . . . 12 . . . . . . . Rewire . | . . . . . . . . . . . . . . . Trap 4 | . . . . 1 3 . . . . . . . . . Miscellaneous 7 | . . . . . . . 1 1 . . . 3 . 2 Route ------- -11/Scrapyard -10/Materials -10/Mines (discovered 3 exits: [*Mat x2] / [*Sub]) -10/Subcaves (discovered 4 exits: [*Mat x2] / Rec / *Scr) -7/Scraptown (discovered 2 exits: *Fac x2) -5/Factory (discovered 4 exits: *Fac x2 / *Upp x2) -5/Waste -5/Factory (discovered 2 exits: *Upp x2) -5/Upper Caves -5/Upper Caves (discovered 2 exits: *Fac / *Zhi) -5/Zhirov -4/Proximity Caves -4/Factory (discovered 6 exits: Res x3 / *Upp x2 / Arm) -4/Waste -4/Factory (discovered 3 exits: *Upp x2 / Arm) History --------- Turn | Location | Event 9 | -11/Scrapyard | Discovered new exit (range 15) 100 | -11/Scrapyard | Entered Materials 310 | -10/Materials | Build established: Mutant 416 | -10/Materials | Lost 3 parts (1p1n1w) 441 | -10/Materials | Discovered new exit (range 12) 510 | -10/Materials | Entered Mines 649 | -10/Mines | Discovered new exit (range 8) 750 | -10/Mines | Met a Derelict who couldn't figure out how to use a Trap Extractor 1065 | -10/Mines | Met a Derelict testing a Signal Generator 1083 | -10/Mines | Found Signal Generator 1097 | -10/Mines | Core integrity fell below 50% 1202 | -10/Mines | Received a Rocket Launcher from a helpful Derelict 1260 | -10/Mines | Learned location of Storage (-7) 1536 | -10/Mines | Discovered new exit (range 5) 1590 | -10/Mines | Discovered new exit (range 11) 1740 | -10/Mines | Entered Subcaves 1740 | -10/Subcaves | Accompanied by 1 ally 1741 | -10/Subcaves | Approached by a straggling Scientist 1741 | -10/Subcaves | Identified exit to Recycling 1750 | -10/Subcaves | Discovered new exit (range 10) 1944 | -10/Subcaves | Scientist uncovered a shortcut to Scraptown 1980 | -10/Subcaves | Disturbed a concealed Subdweller 2152 | -10/Subcaves | Learned location of 1 exit from Materials 2185 | -10/Subcaves | Discovered new exit (range 15) 2186 | -10/Subcaves | Shifting Twisted Machinery released Mak. Kinetic Plating 2620 | -10/Subcaves | Entered Scraptown 2696 | -7/Scraptown | Visited Red Mages 2713 | -7/Scraptown | Visited Cyclists 2732 | -7/Scraptown | Visited Shadow of the Wyrm 2786 | -7/Scraptown | Scanned Subdweller tech in exchange for log data 2789 | -7/Scraptown | Learned Factory security intel 2791 | -7/Scraptown | Learned location of Armory (-4) 2793 | -7/Scraptown | Learned location of 1 exit from Research 2795 | -7/Scraptown | Learned Research interactive machine intel 2797 | -7/Scraptown | Learned location of 1 exit from Factory 2877 | -7/Scraptown | Discovered new exit (range 11) 3345 | -7/Scraptown | Visited Fellowship of the Rings 3381 | -7/Scraptown | Visited SPCMW 3414 | -7/Scraptown | Visited Artisan Demo Area 3434 | -7/Scraptown | Visited UFD Registry 3434 | -7/Scraptown | Registered with UFD as "Dualmachine" 3459 | -7/Scraptown | Visited CR-KLE's Repair Center 3594 | -7/Scraptown | Guru changed UFD alias to "Autoeater" 3805 | -7/Scraptown | Visited DA-N13 Charitable Foundation 3813 | -7/Scraptown | Found DCF Scrap (27 items) 3858 | -7/Scraptown | Visited Curators Association 3917 | -7/Scraptown | Visited Junk Cannon Lab 4056 | -7/Scraptown | Visited Science Guys 4120 | -7/Scraptown | Visited Infowarlord's Domain 4155 | -7/Scraptown | Visited Scrapoid Research Area 4200 | -7/Scraptown | Visited Scrap Suit Storage 4274 | -7/Scraptown | Visited Observation Area 4312 | -7/Scraptown | Visited LU-1G1's Boring Crew 4346 | -7/Scraptown | Visited Chapter 10 4582 | -7/Scraptown | Entered Cyclist Reading Room 5454 | -7/Scraptown | Warned about trapping Scraptown 5563 | -7/Scraptown | Found Personal Teleporter v0.10 5577 | -7/Scraptown | Lost 5 allies 5783 | -7/Scraptown | Discovered new exit (range 5) 5794 | -7/Scraptown | System corruption cleaned by C-Scrubber 6388 | -7/Scraptown | CR-KLE repaired 6 parts 6503 | -7/Scraptown | Found Exp. Sensor Array 6520 | -7/Scraptown | Met Optimus 6520 | -7/Scraptown | Accepted into 0bPrime 6551 | -7/Scraptown | Entered Factory 6551 | -5/Factory | Evolved 10 slots: Power x1, Propulsion x3, Utility x6 6552 | -5/Factory | Identified exit to Factory 6557 | -5/Factory | Identified exit to Upper Caves 6622 | -5/Factory | Build established: Derelict-Mutant 6677 | -5/Factory | Loaded intel: 8 recycling unit locations 6842 | -5/Factory | Lost 4 parts (2n1u1w) 6891 | -5/Factory | Discovered exit to Factory (range 6) 7095 | -5/Factory | Lost 9 parts (1p4n3u1w) 7287 | -5/Factory | Lost 7 parts (2n3u2w) 7406 | -5/Factory | Fabricated G-50 Soldier (x3) 7502 | -5/Factory | Lost 3 allies 7564 | -5/Factory | Build established: Scavenger-Sprinter 7599 | -5/Factory | Learned location of Protoforge (-2) 7696 | -5/Factory | System Shield fried by hacking feedback 8151 | -5/Factory | Sucked down chute 8151 | -5/Factory | Entered Waste 8166 | -5/Waste | EMP discharged 8175 | -5/Waste | Spotted C-40 Crusher 8177 | -5/Waste | Found Prototype Device 8177 | -5/Waste | Identified Femtoactuators 8183 | -5/Waste | Spotted C-40 Crusher 8183 | -5/Waste | Spotted C-40 Crusher 8186 | -5/Waste | Spotted C-40 Crusher 8203 | -5/Waste | Spotted C-40 Crusher 8217 | -5/Waste | Met Warlord forces unprepared to attack 8220 | -5/Waste | Build established: Scavenger-Scout 8247 | -5/Waste | Allies destroyed C-40 Crusher 8253 | -5/Waste | Allies destroyed C-40 Crusher 8254 | -5/Waste | Allies destroyed C-40 Crusher 8266 | -5/Waste | EMP discharged 8266 | -5/Waste | System corruption reached 10% 8272 | -5/Waste | Allies destroyed C-40 Crusher 8279 | -5/Waste | Discovered new exit (range 11) 8284 | -5/Waste | Identified exit to Factory 8284 | -5/Waste | Entered Factory 8296 | -5/Factory | Lost 12 allies 8557 | -5/Factory | Tech Extrapolator generated special schematic: Deep Structural Scanner 8573 | -5/Factory | Build established: Scavenger-Sprinter 8639 | -5/Factory | Loaded intel: 8 recycling unit locations 8969 | -5/Factory | Fabricated Deep Structural Scanner? 9134 | -5/Factory | Entered Upper Caves 9268 | -5/Upper Caves | Learned location of Warlord (-4) 9301 | -5/Upper Caves | Found Alien Artifact 9301 | -5/Upper Caves | Identified Dimensional Node Initializer 9301 | -5/Upper Caves | Initialized slip node 9320 | -5/Upper Caves | Encountered a Warlord checkpoint 9320 | -5/Upper Caves | Discovered new exit (range 16) 9325 | -5/Upper Caves | Identified exit to Upper Caves 9335 | -5/Upper Caves | Entered another Upper Caves area 9335 | -5/Upper Caves | Discovered exit to Factory (range 13) 9350 | -5/Upper Caves | Found Alien Artifact 9350 | -5/Upper Caves | Identified Core Expander 9350 | -5/Upper Caves | Installed Core Expander, added new Propulsion slot 9431 | -5/Upper Caves | Build established: Scavenger-Scout 9570 | -5/Upper Caves | Discovered new exit (range 14) 9581 | -5/Upper Caves | Identified exit to Zhirov 9582 | -5/Upper Caves | Entered Zhirov 9582 | -5/Zhirov | Discovered new exit (range 3) 9584 | -5/Zhirov | Identified exit to Proximity Caves 9589 | -5/Zhirov | Met Zhirov 9602 | -5/Zhirov | Learned location of Quarantine (-2) 9602 | -5/Zhirov | Learned location of Testing (-3) 9602 | -5/Zhirov | Learned location of Command (-1) 9605 | -5/Zhirov | Zhirov requested help retrieving the SGEMP Prototype 9610 | -5/Zhirov | Found Alien Artifact 9610 | -5/Zhirov | Identified Integrated Dissipator 9610 | -5/Zhirov | Installed Integrated Dissipator, increased core heat dissipation (+20) 9679 | -5/Zhirov | Found Alien Artifact 9696 | -5/Zhirov | Entered Proximity Caves 9763 | -4/Proximity Caves | Learned location of 1 exit from Upper Caves 9845 | -4/Proximity Caves | Tech Extrapolator generated special schematic: Energy Deflector 10003 | -4/Proximity Caves | Build established: Scavenger-Sprinter 10099 | -4/Proximity Caves | Discovered exit to Factory (range 13) 10103 | -4/Proximity Caves | Entered Factory 10103 | -4/Factory | Evolved 2 slots: Utility x2 10150 | -4/Factory | Loaded intel: 8 recycling unit locations 10170 | -4/Factory | Identified exit to Upper Caves 10170 | -4/Factory | Identified exit to Armory 10272 | -4/Factory | Learned location of 1 exit from Armory 10312 | -4/Factory | Learned 2 Upper Caves zone layouts 10344 | -4/Factory | Learned 8 Research zone layouts 10367 | -4/Factory | Learned Quarantine terminal intel 10379 | -4/Factory | Learned location of 1 exit from Quarantine 10380 | -4/Factory | Learned 2 Armory zone layouts 10381 | -4/Factory | Learned location of 2 exits from Proximity Caves 10406 | -4/Factory | Identified exit to Research 10585 | -4/Factory | Build established: Hacker-Scout 10756 | -4/Factory | Sucked down chute 10756 | -4/Factory | Entered Waste 10756 | -4/Waste | The area was eerily silent 10868 | -4/Waste | Discovered new exit (range 12) 10928 | -4/Waste | Found Broken Adv. Force Booster 10950 | -4/Waste | Identified exit to Factory 10950 | -4/Waste | Entered Factory 11132 | -4/Factory | Loaded intel: 8 recycling unit locations 11162 | -4/Factory | Spotted B-86 Titan 11230 | -4/Factory | Lost 3 parts (1n1u1w) 11261 | -4/Factory | Lost 6 parts (1p3n2u) 11304 | -4/Factory | Loaded intel: 96 trap records 11305 | -4/Factory | Lost 3 parts (1n2u) 11345 | -4/Factory | Learned Research trap positions 11350 | -4/Factory | Fabricated Adv. Gravity Neutralizer? 11374 | -4/Factory | Learned Armory fabricator intel 11394 | -4/Factory | Learned 4 Armory zone layouts 11402 | -4/Factory | Learned Research repair station intel 11403 | -4/Factory | Learned Research emergency access door positions 11404 | -4/Factory | Learned Armory security intel 11405 | -4/Factory | Learned location of 2 exits from Research 11416 | -4/Factory | Learned location of 1 exit from Research 11417 | -4/Factory | Lost 3 parts (1n1u1w) 11438 | -4/Factory | Learned Factory trap positions 11778 | -4/Factory | Scraphulk reinforcements arrived? 11845 | -4/Factory | Core integrity fell below 50% 11860 | -4/Factory | Core integrity fell below 20% 11871 | -4/Factory | Build established: Hacker-Mutant 11893 | -4/Factory | Lost 18 parts (2p8n6u2w) 11940 | -4/Factory | Destroyed by G-73 Enforcer with Phase Gun Last Messages --------------- >>Trojan(Track) Trojan loaded successfully. Testing... Tracking enabled and active. >>Traps(Locate) Found 12 traps in 2 arrays: 6x Stasis Trap 6x Ambush Trap Map updated. 11908_ Terminal disabled. 11913_ T-07 Excavator is excavating. 11915_ The unstable cave ceiling collapses. 11917_ T-07 Excavator is excavating. 11920_ Tech Extrapolator generates new schematic "Enh. Multireflex Exoskeleton". Influences: Ovr. Armored Exoskeleton, Femtoactuators, Microactuators. 11921_ Connecting with Terminal... 11922_ | N>OFGTIMA3XS K4 Map ----- +----------------------------------------------------+ | ?????????????????????????????????????????????????? | | ?????????????????????????????????????????????????? | | ?????????????????????????????????????????????????? | | ?????????????????????????????????????????????????? | | ?????????????????????????????????????????????????? | | ?????????????????????????????????????????????????? | | ?????????????????????????????????????????????????? | | ?????????????????????????????????????????????????? | | ?????????????????????????????????????????????????? | | ?????????????????????????????????????????????????? | | ????????????????????????????????????# #??????????? | | ?????????????????A?????????????????? ??????????? | | ??????????????????????????????????### ###????????? | | ??????????????????????????????????# #???###### | | ??????????????????????????????????# #???# ! | | ??????????????????????????????????# #???# | | ??????????????????????????????????+ #???# | | ????????????????????#?????????????# #???# !! | | ????????????????????# ????????????# #???# !! | | ????????????????????# ############# ##### !! | | ????????????????????# ##### | | ????????????????????# ##" | | ????????????????????+ ""### | | ????????????????????# ####" | | ####????????????????# #??## | | #????????????????#####@######### #???###### | | " #??????????????????? ??????# ########## | | " #?????????????????# ! ????# | | "" #?????????????????# R ??# ^ ^ | | "" #?????????????????# > #"" """^""" " | | "" #?????????????????# #"" """ ""??? | | #?????????????????# [ #"T ^""" """ " | | #?????????????????# #"" ^ | | ###############################g###"" """ """ " | | ?????? """ """^? | | ??? """ ""??? | | ??? ???? | | ?? = ???? | | ? ??? | | #####""#####+######?????##########+########??? | | #??####! #?????????????????????????? | | ^ ^^#??#### """"""" #?????????????????????????? | | #??#### """""""? #?????????????????????????? | | #??#### """""""? #?????????????????????????? | | #??#### """"""" #?????##??????????????????? | | #??#### #????# ???!??????????????? | | #??#### """"""" ####?# #??????????????????? | | #??#### """"""" ####?# #??????????????????? | | #??#### """"""" ####?# #??????????????????? | | [ #??#### """"""" ###### ######?????????????? | +----------------------------------------------------+ Best States ------------- Heat Dissipation 63 Coolant Potential 50 Energy Generation 35 Energy Capacity 390 Matter Stores 300 Matter Capacity 300 Sight Range 21 Robot Scan Range 20 Terrain Scan Range 24 Terrain Scan Density 210 Jamming Range 16 Additional Mass Support 16 Armor Coverage 225 Resistance: EM 15 Evasion (%) 65 Target Analysis 9 Recoil Reduction 1 Offensive Hacking 40 Defensive Hacking 20 Authchip Count 1 Item Schematics ----------------- Huge Storage Unit | -10/Materials | Hacked Mak. Power Source | -5/Factory | Extrapolated Deep Structural Scanner | -5/Factory | Extrapolated Femtoactuators | -5/Factory | Scanalyzed CPS Tube | -5/Factory | Scanalyzed Mapping Drone Bay | -5/Factory | Extrapolated Mak. Heavy Armor Plating | -5/Upper Caves | Extrapolated Mak. Coolant Network | -5/Upper Caves | Extrapolated Mak. Salvage Targeting Computer | -5/Upper Caves | Extrapolated Arc Thrower | -5/Upper Caves | Extrapolated Mak. Terrain Scanner | -5/Zhirov | Extrapolated Assault Drone Bay | -5/Zhirov | Free Exp. Heat Sink | -5/Zhirov | Free Exp. Optical Array | -5/Zhirov | Free Imp. Arc Thrower | -5/Zhirov | Free Mak. Transmission Jammer | -5/Zhirov | Extrapolated Mak. Thermal Plating | -4/Proximity Caves | Extrapolated Energy Deflector | -4/Proximity Caves | Extrapolated Mak. Hacking Suite | -4/Proximity Caves | Extrapolated Mak. System Shield | -4/Proximity Caves | Extrapolated Mic. Antimatter Reactor | -4/Factory | Hacked Mak. Sensor Array | -4/Factory | Extrapolated Adv. Heavy Siege Treads | -4/Factory | Hacked Adv. Gravity Neutralizer | -4/Factory | Hacked Tactical Coordination Suite | -4/Factory | Extrapolated Mak. Medium Armor Plating | -4/Factory | Extrapolated Cld. Nuclear Pulse Thruster | -4/Factory | Scanalyzed Mak. Terrain Scan Processor | -4/Factory | Extrapolated Mak. Ablative Armor | -4/Factory | Extrapolated Mak. Laser | -4/Waste | Extrapolated Hvy. Beamcaster | -4/Waste | Extrapolated Bore Cannon | -4/Factory | Extrapolated Adv. Force Booster | -4/Factory | Scanalyzed Centrium Light Armor Plating | -4/Factory | Scanalyzed Mak. System Restoration Module | -4/Factory | Extrapolated Com. Particle Reactor | -4/Factory | Hacked Multitool | -4/Factory | Extrapolated Field Propulsion Array | -4/Factory | Hacked Impulse Thruster Array | -4/Factory | Hacked Multireflex Exoskeleton | -4/Factory | Extrapolated Enh. Multireflex Exoskeleton | -4/Factory | Extrapolated Robot Schematics ------------------ None Fabricated ------------ G-50 Soldier | x3 | -5/Factory | Preloaded Deep Structural Scanner | x1 | -5/Factory Adv. Gravity Neutralizer | x1 | -4/Factory | Authchip Repaired ---------- Nothing Alien Tech Used ----------------- Dimensional Node Initializer Core Expander Integrated Dissipator Achievements -------------- None Challenges ------------ None Game ------ Seed NetworkedSalvageMatrix Manual? 0 Play Time 03:51:14 Cumulative 686.2 hours Start 2025.05.10 @ 00:22:21 End 2025.05.10 @ 15:27:21 Sessions 7 Manual Loads 0 Difficulty Rogue Special Mode None Game No. 271 Rogue 266 Adventurer 4 Explorer 1 Win Type - Total 10 Types 6/1/1/1/0/1/0/0/0/0 Lore% 93 Gallery% 87 Achievement% 87 Wizard Run 0 Options --------- Layout 0 ASCII 0 Keyboard 0 Movement Numpad Keybinds 0 Fullscreen 2 Font 18/CogNarrow Map View 76x50 Zoom Use 0% Tactical HUD 1 Map Filters NONE Filters NONE Steam 1 RUN: a557160a-5585-4658-858e-695e9395e880